bitfinex-derivatives/quotes_ETHF0:USTF0_20250224
["timestamp","ask_amount","ask_price","bid_price","bid_amount"]
[1740380736670,4.16e-06,2735.0,2734.7,3.2078]
[1740380741484,4.16e-06,2735.0,2734.8,0.5609]
[1740380741684,4.16e-06,2735.0,2734.8,1.683]
[1740380759193,4.16e-06,2735.0,2734.9,3.2078]
[1740380760298,0.73430341,2735.6,2734.9,13.18655894]
[1740380760500,0.73430341,2735.6,2735.5,3.2078]
[1740380760688,1.0601,2735.7,2735.5,3.2078]
[1740380760892,1.0601,2735.7,2735.1,3.2078]
[1740380761095,0.05946433,2735.6,2735.1,3.2078]
[1740380761290,2.407,2735.5,2735.2,3.7412]
[1740380761485,2.9696,2735.5,2735.2,3.2078]
[1740380761689,3.2078,2735.3,2734.4,3.2078]
[1740380761895,3.2078,2735.3,2734.7,3.2078]
[1740380762095,0.5475,2735.2,2734.8,0.5631]
[1740380762291,0.5475,2735.2,2735.1,0.73114]
[1740380762599,0.73430341,2735.4,2735.3,0.73109]
[1740380762794,0.73430341,2735.4,2735.3,3.93889]
[1740380762795,0.5475,2735.4,2735.3,3.93889]
[1740380763092,2.407,2735.6,2735.5,0.73104]
[1740380763299,2.9545,2735.6,2735.5,0.73104]
[1740380763691,0.5475,2735.6,2735.5,0.73104]
[1740380764409,0.0035993,2735.7,2735.3,5.03553]
[1740380764600,0.0035993,2735.7,2735.6,3.93881]
[1740380765403,0.0035993,2735.7,2735.6,4.47841]
[1740380769492,0.0035993,2735.7,2735.6,4.47532605]
[1740380771000,9.3e-06,2735.7,2735.6,4.47532605]
[1740380771198,9.3e-06,2735.7,2735.6,3.74431605]
[1740380771703,0.5326,2736.1,2735.6,3.74431605]
[1740380771897,0.73430341,2736.3,2736.0,3.2078]
[1740380772201,0.73430341,2736.3,2736.1,1.0994]
[1740380772400,2.406,2736.5,2736.2,0.5493]
[1740380772600,0.5686,2736.4,2736.2,0.5493]
[1740380772795,0.5686,2736.4,2736.3,3.2078]
[1740380773498,0.00548,2736.6,2736.3,3.2078]
[1740380776095,0.73430341,2737.0,2736.3,3.2078]
[1740380776396,0.73430341,2737.0,2736.9,3.2078]
[1740380776602,0.5328,2737.3,2736.9,3.2078]
[1740380776802,0.5328,2737.3,2737.0,1.1089]
[1740380777001,1.674,2737.3,2737.0,1.1089]
[1740380777703,1.674,2737.3,2736.9,0.00548416]
[1740380778400,3.2078,2737.2,2736.9,0.00548416]
[1740380779402,1.674,2737.3,2736.9,0.00548416]
[1740380780810,3.2078,2737.2,2736.9,0.00548416]
[1740380782401,1.674,2737.3,2736.9,3.21328416]
[1740380783507,1.674,2737.3,2736.9,0.00548416]
[1740380784400,5.6128,2737.2,2736.9,0.00548416]
[1740380785004,0.05943013,2737.1,2735.9,3.2078]
[1740380785211,3.2078,2736.9,2735.9,3.2078]
[1740380785505,3.5092,2736.8,2735.9,3.2078]
[1740380785709,3.5092,2736.8,2736.0,1.6803]
[1740380786105,3.5092,2736.8,2736.2,1.82713]
[1740380786411,3.5092,2736.8,2736.6,0.73072]
[1740380786709,6.4962,2736.8,2736.6,0.73072]
[1740380787014,6.4962,2736.8,2736.1,1.83264416]
[1740380787399,6.4962,2736.8,2736.3,0.73078]
[1740380787598,3.2078,2736.6,2736.3,0.73078]
[1740380788112,3.2078,2736.6,2736.4,0.73077]
[1740380788407,0.5596,2736.5,2736.4,0.73077]
[1740380789199,0.5596,2736.5,2736.1,0.00548416]
[1740380797012,2.405,2736.4,2736.1,0.00548416]
[1740380797209,1.1021,2736.3,2736.1,0.00548416]
[1740380800306,3.5071,2736.3,2736.1,0.00548416]
[1740380800919,3.5071,2736.3,2736.1,0.57598416]
[1740380801419,3.5071,2736.3,2736.1,0.00548416]
[1740380802427,6.7149,2736.3,2736.1,0.00548416]
[1740380802611,0.78926906,2736.2,2735.1,4.8671]
[1740380802812,3.2078,2735.9,2735.1,4.8671]
[1740380803011,3.2078,2735.5,2734.8,3.7508]
[1740380803215,2.405,2735.4,2734.8,3.2078]
[1740380803415,0.60896877,2735.3,2734.9,0.73118]
[1740380803619,0.63676877,2735.2,2734.9,0.73118]
[1740380803815,0.5773,2735.2,2734.8,3.21328416]
[1740380804022,3.7851,2735.2,2734.8,0.00548416]
[1740380804618,2.405,2735.1,2734.8,0.00548416]
[1740380804822,2.405,2735.1,2734.8,0.73668416]
[1740380805020,3.2078,2734.9,2734.8,0.00548416]
[1740380816432,3.26728712,2734.9,2734.3,0.5259]
[1740380816634,3.2078,2734.5,2734.3,0.5259]
[1740380816827,5.6138,2734.5,2734.3,0.5259]
[1740380818527,2.406,2734.5,2734.3,0.5259]
[1740380819337,2.406,2734.5,2734.1,0.58738416]
[1740380819636,5.6138,2734.5,2734.1,0.58738416]
[1740380819938,2.406,2734.5,2734.1,0.58738416]
[1740380820636,0.5627,2734.7,2734.1,3.79518416]
[1740380820837,4.3207,2734.8,2734.1,3.79518416]
[1740380820838,2.406,2734.6,2734.1,3.79518416]
[1740380823335,2.406,2734.6,2734.1,0.58738416]
[1740380823536,3.2078,2734.5,2734.1,0.00548416]
[1740380824041,0.05949555,2734.4,2734.1,0.00548416]
[1740380824444,0.5773,2734.3,2734.1,0.00548416]
[1740380824743,2.9811,2734.2,2734.1,0.00548416]
[1740380826737,3.5466,2734.2,2734.1,0.00548416]
[1740380827543,6.81389938,2734.2,2734.1,0.00548416]
[1740380828335,7.48498338,2734.2,2734.1,0.00548416]
[1740380828535,7.54448549,2734.2,2733.6,0.5681]
[1740380828740,0.05950211,2734.1,2733.6,0.5681]
[1740380829135,0.79008549,2734.1,2733.6,0.5681]
[1740380829444,3.2078,2733.7,2733.1,4.3298]
[1740380829738,2.407,2733.6,2733.1,4.3298]
[1740380829945,2.407,2733.6,2733.2,0.00548416]
[1740380834744,3.2078,2733.7,2733.2,0.00548416]
[1740380834949,2.407,2733.7,2733.4,3.2078]
[1740380835347,2.407,2733.7,2733.4,44.0078]
[1740380835647,2.41248416,2733.8,2733.4,44.0078]
[1740380835847,2.41248416,2733.8,2733.4,3.2078]
[1740380836553,2.41248416,2733.8,2733.3,0.5673]
[1740380837142,3.84091341,2733.7,2733.3,0.5673]
[1740380837349,0.5285,2733.6,2733.3,0.5673]
[1740380837550,1.0904,2733.6,2733.3,0.5673]
[1740380837841,1.82262706,2733.6,2733.3,0.5673]
[1740380839347,1.29412706,2733.6,2733.3,0.5673]
[1740380839741,0.73222706,2733.6,2733.3,0.5673]
[1740380839944,3.2078,2733.7,2733.3,0.5673]
[1740380841350,3.7644,2733.7,2733.3,0.5673]
[1740380842648,0.54,2733.6,2733.3,0.5673]
[1740380843144,1.27206856,2733.6,2733.2,0.00548416]
[1740380845052,1.27206856,2733.6,2733.2,0.58388416]
[1740380852964,3.2078,2733.4,2733.2,0.00548416]
[1740380853258,2.9771,2733.3,2733.2,0.00548416]
[1740380853655,3.70916856,2733.3,2733.2,0.00548416]
[1740380854861,2.9771,2733.3,2733.2,0.00548416]
[1740380856555,8.9771,2733.3,2732.3,3.2078]
[1740380856760,8.9771,2733.3,2732.0,1.6788]
[1740380856761,3.2078,2732.6,2732.0,1.6788]
[1740380856960,2.9802,2732.5,2732.0,0.5576]
[1740380857162,3.2078,2732.1,2731.4,1.1212]
[1740380857358,2.407,2732.0,2731.4,1.1212]
[1740380857553,2.407,2732.0,2731.4,1.6788]
[1740380857760,2.41248416,2732.0,2731.4,1.68428416]
[1740380857953,3.14455272,2732.0,2731.7,0.73204]
[1740380858261,3.14455272,2732.0,2731.8,0.73201]
[1740380858456,0.73755272,2732.0,2731.9,0.732]
[1740380858763,2.41248416,2732.0,2731.9,0.732]
[1740380859758,0.73206856,2732.3,2732.2,0.73192]
[1740380859960,2.408,2732.5,2732.4,0.73186]
[1740380861457,3.21328416,2732.7,2732.5,0.73182]
[1740380861661,2.408,2732.6,2732.5,0.73182]
[1740380862261,0.00548416,2732.7,2732.6,0.73181]
[1740380862460,4.16e-06,2732.7,2732.6,1.88581]
[1740380863064,4.16e-06,2732.7,2732.6,2.45771]
[1740380864264,4.16e-06,2732.7,2732.6,43.25771]
[1740380868878,4.16e-06,2732.7,2732.6,2.45771]
[1740380869184,4.16e-06,2732.7,2732.6,1.88581]
[1740380869383,4.16e-06,2732.7,2732.6,0.73181]
[1740380869578,0.54600416,2732.7,2732.6,0.73181]
[1740380869983,1.07690416,2732.7,2732.6,0.73181]
[1740380870981,0.54600416,2732.7,2732.6,0.73181]
[1740380871184,0.54600416,2732.7,2732.2,3.2078]
[1740380877486,0.5846,2732.6,2732.2,3.2078]
[1740380879189,0.5846,2732.6,2732.0,1.1071]
[1740380880490,0.05954076,2732.5,2732.0,1.1071]
[1740380880686,2.408,2732.4,2732.0,1.1071]
[1740380882893,5.6158,2732.4,2732.0,1.1071]
[1740380883193,5.6158,2732.4,2731.9,3.2078]
[1740380883390,0.05954761,2732.3,2731.9,3.2078]
[1740380883892,0.5457,2732.2,2731.9,3.2078]
[1740380884384,0.73175819,2732.3,2731.9,3.2078]
[1740380885390,3.13975819,2732.3,2731.9,3.2078]
[1740380885791,2.408,2732.3,2731.9,3.2078]
[1740380885993,2.9537,2732.5,2731.9,3.2078]
[1740380886191,2.9537,2732.5,2732.0,0.5636]
[1740380886393,6.1615,2732.5,2732.0,0.5636]
[1740380886990,0.73175819,2732.4,2732.0,0.5636]
[1740380887196,0.73175819,2732.4,2731.9,3.2078]
[1740380887495,1.28385819,2732.4,2731.9,3.2078]
[1740380888393,0.05954598,2732.3,2731.9,3.2078]
[1740380890297,1.28385819,2732.4,2731.9,3.2078]
[1740380890500,0.05954751,2732.3,2731.9,3.2078]
[1740380891201,3.2078,2732.1,2731.7,0.5718]
[1740380891402,2.992,2732.0,2731.7,0.5718]
[1740380891600,3.5406,2732.0,2731.7,0.5718]
[1740380891796,3.5406,2732.0,2731.6,0.5826]
[1740380892100,3.2078,2731.7,2731.6,0.5826]
[1740380892300,3.2078,2731.7,2731.4,0.00548416]
[1740380892506,2.9447,2731.6,2730.6,3.2078]
[1740380892698,3.2078,2731.3,2730.6,3.2078]
[1740380893001,2.408,2731.2,2730.7,40.8]
[1740380893510,0.5367,2731.1,2730.6,3.2078]
[1740380893696,0.5367,2731.1,2730.7,0.00548416]
[1740380896703,3.2078,2731.0,2730.7,0.00548416]
[1740380897305,1.26906711,2731.1,2730.7,0.00548416]
[1740380897610,0.5367,2731.1,2730.7,0.00548416]
[1740380899507,3.803278,2731.0,2730.7,0.00548416]
[1740380899808,3.7437,2731.0,2730.7,0.00548416]
[1740380900008,4.47606711,2731.0,2730.7,0.00548416]
[1740380900700,3.7437,2731.0,2730.7,0.00548416]
[1740380902914,4.47532821,2731.0,2730.7,0.00548416]
[1740380903706,0.73162821,2731.0,2730.7,0.00548416]
[1740380904013,2.409,2730.9,2730.7,0.00548416]
[1740380904512,0.5367,2731.1,2730.7,0.53478416]
[1740380904814,2.409,2730.9,2730.7,0.53478416]
[1740380907110,2.409,2730.9,2730.7,0.00548416]
[1740380916314,0.5795,2731.0,2730.7,0.00548416]
[1740380916620,2.9885,2731.0,2730.7,0.00548416]
[1740380916818,0.73729245,2731.2,2730.9,3.2078]
[1740380917117,0.5522,2732.2,2731.0,4.092]
[1740380917318,0.5522,2732.2,2731.8,3.2078]
[1740380917521,0.5522,2732.2,2732.1,0.73194]
[1740380917814,0.05954797,2732.2,2732.1,0.73194]
[1740380918209,3.2078,2732.3,2731.9,1.83]
[1740380918413,0.00548416,2732.4,2732.3,0.73189]
[1740380918616,0.00548416,2732.4,2731.8,3.2078]
[1740380918820,1.09188416,2732.4,2732.1,0.73740416]
[1740380919022,1.09188416,2732.4,2732.1,0.73742416]
[1740380919023,1.64408416,2732.4,2732.1,0.73742416]
[1740380919414,1.64408416,2732.4,2732.1,0.00548416]
[1740380919622,1.64408416,2732.4,2732.1,0.73742416]
[1740380919814,1.64408416,2732.4,2732.1,0.00548416]
[1740380920322,1.64408416,2732.4,2732.2,0.73191]
[1740380920519,1.64408416,2732.4,2732.3,0.73189]
[1740380920715,1.7036258,2732.4,2732.3,0.73189]
[1740380921015,1.64408416,2732.4,2732.3,0.73189]
[1740380922714,0.00548416,2732.4,2732.3,0.73189]
[1740380922922,4.16e-06,2732.4,2732.3,0.73189]
[1740380924528,4.16e-06,2732.4,2732.1,0.00548416]
[1740380924836,1.10010416,2732.4,2732.2,0.73192]
[1740380925527,1.10010416,2732.4,2732.3,0.73189]
[1740380927125,1.10010416,2732.4,2732.1,0.00548416]
[1740380927314,1.10010416,2732.4,2732.2,0.73189]
[1740380927924,1.10010416,2732.4,2732.1,0.00548416]
[1740380928123,1.10010416,2732.4,2732.1,0.73742416]
[1740380928324,1.10010416,2732.4,2732.1,0.00548416]
[1740380928523,1.10010416,2732.4,2732.2,0.7319]
[1740380928720,1.10010416,2732.4,2732.1,0.00548416]
[1740380928918,1.10010416,2732.4,2732.1,0.73739416]
[1740380929128,1.10010416,2732.4,2732.1,0.00548416]
[1740380932323,4.16e-06,2732.4,2732.1,3.21328416]
[1740380932523,4.16e-06,2732.4,2732.2,1.0809]
[1740380935328,4.16e-06,2732.4,2732.2,1.6572]
[1740380937527,4.16e-06,2732.4,2732.2,1.0809]
[1740380948242,4.16e-06,2732.4,2732.2,3.4889]
[1740380948540,4.16e-06,2732.4,2732.3,40.8]
[1740380949139,4.16e-06,2732.4,2732.2,3.4889]
[1740380949740,4.16e-06,2732.4,2732.2,44.2889]
[1740380950135,4.16e-06,2732.4,2732.2,3.4889]
[1740380950334,0.71538382,2733.3,2732.2,12.4429]
[1740380950535,6.6741,2733.8,2733.2,3.2078]
[1740380950745,0.05951017,2733.7,2733.3,1.1175]
[1740380951046,0.77489399,2733.7,2733.3,1.1175]
[1740380951245,0.71538382,2733.7,2733.3,1.1175]
[1740380951438,0.71538382,2733.7,2733.2,3.2078]
[1740380951639,0.05951535,2733.6,2733.2,3.2078]
[1740380951839,0.71538382,2733.7,2733.2,3.2078]
[1740380952241,0.71538382,2733.7,2733.3,0.5569]
[1740380952647,0.71538382,2733.7,2733.2,3.2078]
[1740380952846,0.71538382,2733.7,2732.9,0.5569]
[1740380953548,0.5335,2733.6,2732.9,0.5569]
[1740380955739,3.2078,2733.5,2732.9,0.5569]
[1740380956147,2.407,2733.4,2732.9,0.5569]
[1740380956540,0.5701,2733.3,2732.9,0.5569]
[1740380957547,1.1028,2733.3,2732.9,0.5569]
[1740380958843,2.407,2733.4,2733.1,3.2078]
[1740380959039,2.407,2733.6,2733.1,3.2078]
[1740380959234,0.5701,2733.7,2733.1,3.2078]
[1740380959447,2.9771,2733.7,2733.4,3.2078]
[1740380959647,0.00548416,2733.8,2733.5,1.0933]
[1740380959941,0.00548416,2733.8,2733.6,0.534]
[1740380960145,3.9237137,2734.4,2733.7,1.8288]
[1740380960347,3.1229137,2734.4,2733.9,1.82863]
[1740380960639,3.1229137,2734.4,2734.3,0.73136]
[1740380960845,2.46649256,2734.4,2734.3,0.73136]
[1740380961034,0.05949256,2734.4,2734.3,0.73136]
[1740380961233,0.7159137,2734.6,2734.3,0.73136]
[1740380961234,0.72139786,2734.6,2734.3,3.2078]
[1740380961433,0.72139786,2734.6,2734.4,0.7313]
[1740380961434,0.00548416,2734.6,2734.4,0.7313]
[1740380961651,0.00548416,2734.6,2734.5,0.7313]
[1740380963944,0.00548416,2734.6,2734.3,0.73134]
[1740380964147,3.2078,2734.5,2734.1,0.00548416]
[1740380964345,1.0922,2734.4,2734.1,0.73687416]
[1740380964543,1.0922,2734.4,2734.2,0.73136]
[1740380964745,1.0922,2734.4,2734.1,0.00548416]
[1740380964941,1.0922,2734.4,2734.2,0.73137]
[1740380968244,3.2078,2734.5,2734.1,0.00548416]
[1740380968449,1.1225,2734.5,2734.4,0.7313]
[1740380969150,1.1225,2734.5,2734.2,1.1242]
[1740380970244,3.5285,2734.5,2734.2,1.1242]
[1740380971849,3.5285,2734.5,2734.1,0.00548416]
[1740380973752,3.2078,2734.3,2734.1,0.00548416]
[1740380974049,0.63050043,2734.2,2733.1,3.2078]
[1740380974258,3.2078,2733.8,2732.9,1.6905]
[1740380974446,3.518,2733.7,2732.9,1.6905]
[1740380974756,3.2078,2733.5,2732.9,1.6905]
[1740380974956,3.2078,2733.5,2732.9,1.1368]
[1740380975254,3.2078,2733.5,2732.9,1.14228416]
[1740380975454,0.05951911,2733.4,2733.1,0.73166]
[1740380975656,2.406,2733.3,2733.1,0.73166]
[1740380977352,2.406,2733.3,2733.1,0.73165]
[1740380978457,3.2078,2733.2,2732.9,0.00548416]
[1740380978754,0.59652459,2733.1,2731.9,1.83]
[1740380978961,3.2078,2732.5,2732.3,0.73187]
[1740380979157,2.406,2732.4,2732.3,0.73189]
[1740380982963,0.00548416,2732.6,2732.2,5.0376]
[1740380983156,0.00548416,2732.6,2732.5,3.93964]
[1740380983358,2.41248416,2732.6,2732.5,0.73184]
[1740380983958,0.00548416,2732.6,2732.5,0.73184]
[1740380984162,0.00548416,2732.6,2732.5,1.26204]
[1740380985966,2.41248416,2732.6,2732.5,1.26204]
[1740380986467,0.00548416,2732.6,2732.5,1.26204]
[1740380987165,0.00548416,2732.6,2732.5,42.06204]
[1740380988268,0.00548416,2732.6,2732.5,41.3302]
[1740380989171,0.00548416,2732.6,2732.5,0.5302]
[1740380989867,0.00548416,2732.6,2732.5,41.3302]
[1740380994776,0.00548416,2732.6,2732.5,0.5302]
[1740380995281,4.16e-06,2732.6,2732.5,0.5302]
[1740380995478,6.1948,2733.7,2732.5,0.5302]
[1740380995479,2.407,2733.1,2732.5,0.5302]
[1740380995678,2.407,2733.1,2732.7,3.2078]
[1740380996280,0.5476,2733.6,2733.0,3.2078]
[1740380996481,2.407,2733.5,2733.1,1.6383]
[1740380996682,0.00548416,2733.2,2733.1,1.1062]
[1740381000386,0.00548416,2733.2,2733.1,4.314]
[1740381000887,0.00548416,2733.2,2733.1,1.1062]
[1740381001183,0.00548416,2733.2,2733.1,4.314]
[1740381001484,4.16e-06,2733.2,2733.1,4.59989302]
[1740381002475,4.16e-06,2733.2,2733.1,4.314]
[1740381002882,4.16e-06,2733.2,2733.1,4.59880491]
[1740381003081,4.16e-06,2733.2,2733.1,4.314]
[1740381004382,0.71499893,2733.9,2733.1,10.314]
[1740381004584,0.71499893,2733.9,2733.6,3.2078]
[1740381004783,4.1002,2734.1,2733.7,1.1085]
[1740381004985,1.1132,2734.1,2733.7,1.1085]
[1740381005788,1.1132,2734.1,2733.7,1.6478]
[1740381005987,1.1132,2734.1,2733.9,3.2078]
[1740381007190,1.1132,2734.1,2733.7,1.6478]
[1740381009685,0.5773,2734.1,2733.9,3.2078]
[1740381010592,0.5773,2734.1,2733.7,1.6478]
[1740381010793,0.5773,2734.1,2733.9,3.2078]
[1740381013090,4.16e-06,2734.2,2733.9,3.2078]
[1740381013297,2.406,2735.3,2734.0,2.406]
[1740381013590,2.406,2735.3,2734.8,3.2078]
[1740381013591,0.5501,2735.3,2734.8,3.2078]
[1740381013784,0.5501,2735.3,2734.9,1.6909]
[1740381014192,3.12048277,2735.7,2735.6,0.73101]
[1740381014493,1.26478277,2735.7,2735.6,0.73101]
[1740381014697,0.5503,2735.7,2735.6,0.73101]
[1740381016498,0.5503,2735.7,2735.5,0.73104]
[1740381016894,0.5503,2735.7,2735.4,0.73652416]
[1740381017097,3.2078,2735.5,2735.4,0.00548416]
[1740381017597,2.9436,2735.6,2735.4,0.00548416]
[1740381018094,2.9436,2735.6,2735.4,0.73653416]
[1740381018491,2.9436,2735.6,2735.4,0.00548416]
[1740381021988,0.05946883,2735.5,2734.6,3.2078]
[1740381022187,3.2078,2735.2,2734.3,0.5667]
[1740381022392,2.405,2735.1,2735.0,0.73114]
[1740381022695,2.405,2735.1,2734.9,0.73117]
[1740381022891,2.405,2735.1,2734.6,1.82814]
[1740381023194,2.41048416,2735.1,2735.0,0.73117]
[1740381024594,0.00548416,2735.1,2735.0,0.73117]
[1740381024803,2.41048416,2735.1,2735.0,0.73117]
[1740381026101,0.00548416,2735.1,2734.6,0.00548416]
[1740381026302,2.41048416,2735.1,2734.8,3.2078]
[1740381026500,2.41048416,2735.1,2734.6,0.00548416]
[1740381028104,0.00548416,2735.1,2734.8,3.2078]
[1740381028306,0.00548416,2735.1,2734.9,1.6948]
[1740381029707,0.00548416,2735.1,2734.9,1.119]
[1740381031804,0.00548416,2735.1,2734.6,0.00548416]
[1740381032004,3.2078,2734.9,2734.3,0.5614]
[1740381032210,2.405,2734.8,2734.3,0.5614]
[1740381032505,2.9723,2734.8,2734.3,0.5614]
[1740381032897,2.9723,2734.8,2734.2,0.5543]
[1740381033103,3.2078,2734.6,2734.2,0.00548416]
[1740381033300,1.0784,2734.5,2734.2,0.73685416]
[1740381033507,2.405,2734.4,2734.3,0.73136]
[1740381034301,2.405,2734.4,2734.2,0.73684416]
[1740381034503,2.405,2734.4,2734.3,0.73136]
[1740381035409,2.405,2734.4,2734.2,0.73684416]
[1740381035907,0.5304,2734.3,2734.2,0.73684416]
[1740381037110,0.5304,2734.3,2734.2,0.00548416]
[1740381039818,3.7382,2734.3,2734.2,0.00548416]
[1740381040113,6.1432,2734.3,2734.2,0.00548416]
[1740381041109,3.7382,2734.3,2734.2,0.00548416]
[1740381041309,6.1432,2734.3,2734.2,0.00548416]
[1740381046819,6.85862485,2734.3,2734.2,0.00548416]
[1740381050326,3.65082485,2734.3,2734.2,0.00548416]
[1740381050526,6.1432,2734.3,2734.2,0.00548416]
[1740381051025,6.85862485,2734.3,2734.2,0.00548416]
[1740381051926,6.91812306,2734.3,2734.2,0.00548416]
[1740381052927,6.91812428,2734.3,2734.2,0.00548416]
[1740381054727,6.91812372,2734.3,2734.2,0.00548416]
[1740381056434,6.85862485,2734.3,2734.2,0.00548416]
[1740381056734,6.91812335,2734.3,2734.2,0.00548416]
[1740381058232,6.91812418,2734.3,2734.2,0.00548416]
[1740381059136,6.9181243,2734.3,2734.2,0.00548416]
[1740381060434,6.9181243,2734.3,2732.9,3.2078]
[1740381060634,3.2078,2733.6,2733.2,0.5808]
[1740381060837,2.405,2733.5,2733.3,0.5671]
[1740381061532,3.12042485,2733.5,2733.3,0.5671]
[1740381067339,3.12042485,2733.5,2733.1,0.00548416]
[1740381067641,0.0595178,2733.4,2733.1,0.00548416]
[1740381068038,3.12042485,2733.5,2733.1,0.00548416]
[1740381068236,3.2078,2733.2,2733.1,0.00548416]
[1740381068435,2.405,2733.2,2733.1,0.00548416]
[1740381071341,2.406,2733.3,2733.1,0.00548416]
[1740381071544,2.406,2733.3,2733.2,3.2078]
[1740381071737,0.71542485,2733.4,2733.2,3.749]
[1740381071938,0.00548901,2733.7,2733.2,3.749]
[1740381072240,0.00548901,2733.7,2733.6,0.73154]
[1740381072241,0.00548416,2733.7,2733.6,0.73154]
[1740381072440,0.00548416,2733.7,2733.6,1.83054]
[1740381076243,3.2078,2735.0,2733.6,9.504]
[1740381076445,2.46449291,2734.8,2734.7,0.73123]
[1740381076843,2.46448497,2734.8,2734.7,0.73123]
[1740381077047,2.46448497,2734.8,2734.2,1.145]
[1740381077250,3.26728497,2734.7,2734.4,0.73131]
[1740381077447,0.05949032,2734.6,2734.2,0.00548416]
[1740381077646,0.05949032,2734.6,2734.5,0.7313]
[1740381077845,2.46448688,2734.6,2734.5,0.7313]
[1740381078041,2.405,2734.6,2734.5,0.7313]
[1740381079642,3.2078,2734.7,2734.4,0.5567]
[1740381079851,2.41048416,2734.8,2734.7,0.73125]
[1740381082149,2.41048416,2734.8,2734.4,0.5567]
[1740381082753,0.05948679,2734.7,2734.3,0.5677]
[1740381082954,0.05948679,2734.7,2734.2,3.21328416]
[1740381083153,0.5721,2734.6,2734.2,3.21328416]
[1740381083348,0.0594908,2734.5,2734.2,3.21328416]
[1740381083554,2.405,2734.4,2734.2,3.21328416]
[1740381084053,2.405,2734.4,2734.3,1.1064]
[1740381085156,2.405,2734.4,2734.3,0.5287]
[1740381085350,0.00548416,2734.8,2734.3,0.5287]
[1740381085857,3.21328416,2734.8,2734.3,0.5287]
[1740381086055,2.9682,2734.7,2734.3,0.5287]
[1740381086254,3.5098,2734.7,2734.3,0.5287]
[1740381086757,1.1048,2734.7,2734.3,0.5287]
[1740381086958,2.405,2734.6,2734.3,0.5287]
[1740381092461,2.405,2734.6,2734.3,3.7365]
[1740381094364,4.16e-06,2734.8,2734.3,3.7365]
[1740381094561,4.16e-06,2734.8,2734.7,3.2078]
[1740381095658,4.16e-06,2734.8,2734.5,1.1208]
[1740381095865,4.16e-06,2734.8,2734.5,0.5672]
[1740381097758,4.16e-06,2734.8,2734.4,3.2078]
[1740381097958,0.05948721,2734.8,2734.4,3.2078]
[1740381098155,2.407,2734.7,2734.4,3.2078]
[1740381098360,4.16e-06,2734.8,2734.4,3.2078]
[1740381098560,2.407,2734.7,2734.4,3.2078]
[1740381100666,3.2078,2734.5,2734.2,0.00548416]
[1740381100867,1.16418482,2734.4,2733.5,4.2982]
[1740381101069,3.2078,2734.2,2733.5,4.2982]
[1740381101263,0.05948482,2734.1,2733.6,1.82887]
[1740381101461,3.2078,2734.2,2734.0,0.73141]
[1740381101665,0.05950095,2734.1,2734.0,0.73141]
[1740381102266,0.05950095,2734.1,2733.8,0.00548416]
[1740381102465,0.05950095,2734.1,2733.9,0.73144]
[1740381103067,3.2078,2734.2,2733.8,0.00548416]
[1740381103273,0.05950089,2734.1,2733.8,0.00548416]
[1740381103574,3.2078,2734.2,2734.0,0.73141]
[1740381103767,3.2078,2734.2,2733.8,0.00548416]
[1740381103969,3.2078,2734.2,2734.1,0.73141]
[1740381104165,3.26729957,2734.2,2733.8,0.00548416]
[1740381104472,0.05949957,2734.1,2734.0,0.73142]
[1740381104975,3.2078,2734.2,2734.0,0.73142]
[1740381105277,0.05950166,2734.1,2734.0,0.73142]
[1740381105975,3.2078,2734.2,2734.0,0.73142]
[1740381106177,3.2078,2734.2,2733.8,0.00548416]
[1740381106978,0.05950023,2734.1,2733.8,0.00548416]
[1740381111083,3.2078,2734.2,2733.8,0.00548416]
[1740381111288,0.05950174,2734.1,2733.8,0.00548416]
[1740381114098,3.2078,2734.2,2733.8,0.00548416]
[1740381114287,0.05950204,2734.1,2733.8,0.00548416]
[1740381115193,3.2078,2734.2,2733.8,0.00548416]
[1740381115495,0.05950178,2734.1,2733.8,0.00548416]
[1740381116587,3.2078,2733.9,2733.8,0.00548416]
[1740381116793,5.67230178,2733.9,2733.8,0.00548416]
[1740381116993,6.79910178,2733.9,2733.8,0.00548416]
[1740381118402,6.79910178,2733.9,2732.9,4.8777]
[1740381118704,3.2078,2733.6,2732.9,4.8777]
[1740381119003,2.9751,2733.5,2732.9,4.8777]
[1740381119195,0.5592,2733.4,2732.9,4.8777]
[1740381119596,0.56468416,2733.4,2732.9,4.88318416]
[1740381120599,1.12198416,2733.4,2732.9,4.88318416]
[1740381121104,0.56468416,2733.4,2732.9,4.88318416]
[1740381125495,0.05952101,2733.3,2732.9,4.88318416]
[1740381125698,3.2078,2733.2,2732.9,1.14048416]
[1740381126008,2.405,2733.1,2732.9,0.55688416]
[1740381126308,2.9667,2733.1,2732.9,0.00548416]
[1740381126711,0.05952828,2733.0,2732.9,0.00548416]
[1740381127404,2.9667,2733.1,2732.9,0.00548416]
[1740381127605,0.05952774,2733.0,2732.9,0.00548416]
[1740381128908,0.05952787,2733.0,2732.9,0.00548416]
[1740381129207,0.59152787,2733.0,2732.9,0.00548416]
[1740381129799,0.59153584,2733.0,2732.9,0.00548416]
[1740381133014,0.86984531,2733.0,2732.9,0.00548416]
[1740381133309,0.86984152,2733.0,2732.9,0.00548416]
[1740381133511,3.85684152,2733.0,2732.9,0.00548416]
[1740381134405,3.32484152,2733.0,2732.9,0.00548416]
[1740381134607,3.04653205,2733.0,2732.9,0.00548416]
[1740381134810,5.393,2733.0,2732.9,0.00548416]
[1740381136610,5.9552,2733.0,2732.9,0.00548416]
[1740381138208,6.01472781,2733.0,2732.9,0.00548416]
[1740381139109,6.58862781,2733.0,2732.9,0.00548416]
[1740381139312,3.60162781,2733.0,2732.9,0.00548416]
[1740381139506,3.60163303,2733.0,2732.9,0.00548416]
[1740381140308,3.5421,2733.0,2732.9,0.00548416]
[1740381140616,3.60163293,2733.0,2732.9,0.00548416]
[1740381142209,3.5421,2733.0,2732.9,0.00548416]
[1740381142520,3.60163044,2733.0,2732.9,0.00548416]
[1740381144218,3.60163016,2733.0,2732.9,0.00548416]
[1740381144420,3.02773016,2733.0,2732.9,0.00548416]
[1740381145314,3.30671511,2733.0,2732.4,1.6531]
[1740381145621,3.2078,2732.6,2732.4,1.6531]